fUSD/lending_fUSD_20250219
["ID","MTS","AMOUNT","RATE_DAILY","PERIOD"]
[353656061,1739983844295,-500.0,0.00013149,2]
[353656063,1739983844304,-519.71851068,0.00013149,2]
[353656065,1739983844314,-1813.95,0.00013149,2]
[353656066,1739983844324,-500.0,0.00013149,2]
[353656068,1739983844335,-500.0,0.00013149,2]
[353656070,1739983844345,-575.27,0.00013149,2]
[353656072,1739983844354,-1268.15,0.00013149,2]
[353656074,1739983844364,-1517.09,0.00013149,2]
[353656076,1739983844373,-879.57,0.00013149,2]
[353656078,1739983844383,-693.71,0.00013149,2]
[353656080,1739983844392,-549.95,0.00013149,2]
[353656082,1739983844402,-500.0,0.00013149,2]
[353656084,1739983844411,-982.25,0.00013149,2]
[353656086,1739983844420,-1049.28,0.00013149,2]
[353656088,1739983844429,-888.81,0.00013149,2]
[353656090,1739983844438,-714.75,0.00013149,2]
[353656092,1739983844447,-738.17,0.00013149,2]
[353656094,1739983844457,-500.0,0.00013149,2]
[353656096,1739983844467,-500.0,0.00013149,2]
[353656098,1739983844476,-1041.54,0.00013149,2]
[353656100,1739983844485,-504.27343023,0.00013149,2]
[353656102,1739983844495,-500.0,0.00013149,2]
[353656104,1739983844505,-881.21,0.00013149,2]
[353656106,1739983844514,-500.0,0.00013149,2]
[353656108,1739983844523,-500.0,0.00013149,2]
[353656110,1739983844533,-498.81298779,0.00013149,2]
[353656112,1739983844542,-1026.96,0.00013149,2]
[353656114,1739983844551,-1145.74,0.00013149,2]
[353656116,1739983844560,-500.0,0.00013149,2]
[353656118,1739983844570,-500.0,0.00013149,2]
[353656120,1739983844580,-1196.55,0.00013149,2]
[353656122,1739983844589,-500.0,0.00013149,2]
[353656124,1739983844599,-500.0,0.00013149,2]
[353656126,1739983844608,-500.0,0.00013149,2]
[353656128,1739983844617,-500.0,0.00013149,2]
[353656130,1739983844626,-500.0,0.00013149,2]
[353656132,1739983844636,-1491.77,0.00013149,2]
[353656134,1739983844646,-1245.79,0.00013149,2]
[353656136,1739983844654,-597.15,0.00013149,2]
[353656138,1739983844664,-500.0,0.00013149,2]
[353656140,1739983844673,-1663.64,0.00013149,2]
[353656142,1739983844682,-500.0,0.00013149,2]
[353656144,1739983844691,-500.0,0.00013149,2]
[353656146,1739983844700,-500.0,0.00013149,2]
[353656148,1739983844710,-500.0,0.00013149,2]
[353656150,1739983844719,-521.57,0.00013149,2]
[353656152,1739983844728,-1057.95,0.00013149,2]
[353656154,1739983844737,-500.0,0.00013149,2]
[353656156,1739983844746,-993.27,0.00013149,2]
[353656158,1739983844755,-500.0,0.00013149,2]
[353656160,1739983844764,-500.0,0.00013149,2]
[353656162,1739983844773,-579.67,0.00013149,2]
[353656164,1739983844783,-500.0,0.00013149,2]
[353656166,1739983844792,-517.41454381,0.00013149,2]
[353656168,1739983844801,-500.0,0.00013149,2]
[353656170,1739983844810,-500.0,0.00013149,2]
[353656172,1739983844819,-500.0,0.00013149,2]
[353656174,1739983844828,-931.11,0.00013149,2]
[353656176,1739983844838,-500.0,0.00013149,2]
[353656178,1739983844847,-500.0,0.00013149,2]
[353656180,1739983844857,-876.08,0.00013149,2]
[353656182,1739983844867,-740.24,0.00013149,2]
[353656183,1739983844876,-500.0,0.00013149,2]
[353656184,1739983844886,-1490.28,0.00013149,2]
[353656185,1739983844895,-500.0,0.00013149,2]
[353656186,1739983844904,-503.81599998,0.00013149,2]
[353656187,1739983844914,-500.0,0.00013149,2]
[353656188,1739983844923,-500.0,0.00013149,2]
[353656189,1739983844933,-500.0,0.00013149,2]
[353656190,1739983844944,-500.0,0.00013149,2]
[353656191,1739983844954,-500.0,0.00013149,2]
[353656192,1739983844963,-500.0,0.00013149,2]
[353656193,1739983844974,-500.0,0.00013149,2]
[353656194,1739983844983,-1709.25,0.00013149,2]
[353656195,1739983844993,-500.0,0.00013149,2]
[353656196,1739983845003,-500.0,0.00013149,2]
[353656197,1739983845013,-500.0,0.00013149,2]
[353656198,1739983845022,-1607.95,0.00013149,2]
[353656199,1739983845035,-500.0,0.00013149,2]
[353656200,1739983845046,-500.0,0.00013149,2]
[353656201,1739983845055,-500.0,0.00013149,2]
[353656202,1739983845065,-722.76,0.00013149,2]
[353656203,1739983845075,-205.08655198,0.00013149,2]
[353656204,1739983845084,-500.0,0.00013149,2]
[353656205,1739983845094,-885.9,0.00013149,2]
[353656206,1739983845104,-500.0,0.00013149,2]
[353656207,1739983845115,-841.95,0.00013149,2]
[353656208,1739983845124,-500.0,0.00013149,2]
[353656209,1739983845134,-156.43352753,0.0001317,2]
[353656210,1739983845143,-352.92702931,0.00013171,2]
[353656211,1739983845153,-263.11969102,0.00013178,2]
[353656212,1739983845164,-1000.0,0.000132,2]
[353656213,1739983845174,-2777.7765,0.000132,2]
[353656214,1739983845183,-225.75731591,0.0001321,2]
[353656215,1739983845193,-697.47,0.00013229,2]
[353656216,1739983845202,-500.0,0.00013229,2]
[353656217,1739983845212,-1265.46,0.00013229,2]
[353656218,1739983845222,-500.0,0.00013229,2]
[353656219,1739983845231,-500.0,0.00013229,2]
[353656220,1739983845241,-500.0,0.00013229,2]
[353656221,1739983845250,-880.55,0.00013229,2]
[353656222,1739983845261,-500.0,0.00013229,2]
[353656223,1739983845272,-1319.87,0.00013229,2]
[353656224,1739983845282,-500.0,0.00013229,2]
[353656225,1739983845292,-1067.71,0.00013229,2]
[353656226,1739983845302,-500.0,0.00013229,2]
[353656227,1739983845312,-895.67,0.00013229,2]
[353656228,1739983845322,-1338.94,0.00013229,2]
[353656229,1739983845332,-977.84,0.00013229,2]
[353656230,1739983845342,-1389.85,0.00013229,2]
[353656231,1739983845352,-500.0,0.00013229,2]
[353656232,1739983845363,-759.15,0.00013229,2]
[353656233,1739983845374,-777.48,0.00013229,2]
[353656234,1739983845384,-663.46,0.00013229,2]
[353656235,1739983845394,-500.0,0.00013229,2]
[353656236,1739983845404,-881.7,0.00013229,2]
[353656237,1739983845415,-507.35,0.00013229,2]
[353656238,1739983845424,-556.03,0.00013229,2]
[353656239,1739983845434,-1144.25,0.00013229,2]
[353656240,1739983845444,-709.48,0.00013229,2]
[353656241,1739983845453,-1622.453762,0.00013229,2]
[353656242,1739983845463,-500.0,0.00013229,2]
[353656243,1739983845473,-500.0,0.00013229,2]
[353656244,1739983845483,-964.02,0.00013229,2]
[353656245,1739983845492,-1119.78,0.00013229,2]
[353656246,1739983845502,-757.63,0.00013229,2]
[353656247,1739983845512,-1096.91,0.00013229,2]
[353656248,1739983845522,-1398.45,0.00013229,2]
[353656249,1739983845531,-500.0,0.00013229,2]
[353656250,1739983845541,-1636.746192,0.00013229,2]
[353656251,1739983845551,-566.89,0.00013229,2]
[353656252,1739983845560,-500.0,0.00013229,2]
[353656253,1739983845570,-500.0,0.00013229,2]
[353656254,1739983845580,-527.13,0.00013229,2]
[353656255,1739983845589,-500.0,0.00013229,2]
[353656256,1739983845599,-500.0,0.00013229,2]
[353656257,1739983845608,-500.0,0.00013229,2]
[353656258,1739983845618,-500.0,0.00013229,2]
[353656259,1739983845628,-500.0,0.00013229,2]
[353656260,1739983845638,-500.0,0.00013229,2]
[353656261,1739983845648,-893.79,0.00013229,2]
[353656262,1739983845659,-902.01,0.00013229,2]
[353656263,1739983845668,-1418.08,0.00013229,2]
[353656264,1739983845678,-500.0,0.00013229,2]
[353656265,1739983845687,-563.97,0.00013229,2]
[353656266,1739983845697,-500.0,0.00013229,2]
[353656267,1739983845706,-719.71,0.00013229,2]
[353656268,1739983845717,-1438.03,0.00013229,2]
[353656269,1739983845729,-522.14,0.00013229,2]
[353656270,1739983845742,-500.0,0.00013229,2]
[353656271,1739983845756,-905.71,0.00013229,2]
[353656272,1739983845766,-500.0,0.00013229,2]
[353656273,1739983845775,-500.0,0.00013229,2]
[353656274,1739983845785,-500.0,0.00013229,2]
[353656275,1739983845794,-500.0,0.00013229,2]
[353656276,1739983845803,-1507.27,0.00013229,2]
[353656277,1739983845813,-500.0,0.00013229,2]
[353656278,1739983845822,-500.0,0.00013229,2]
[353656279,1739983845832,-2228.43,0.00013229,2]
[353656280,1739983845842,-500.0,0.00013229,2]
[353656281,1739983845851,-720.89,0.00013229,2]
[353656282,1739983845860,-1586.99,0.00013229,2]
[353656283,1739983845870,-500.0,0.00013229,2]
[353656284,1739983845880,-500.0,0.00013229,2]
[353656285,1739983845891,-500.0,0.00013229,2]
[353656286,1739983845903,-500.0,0.00013229,2]
[353656287,1739983845914,-660.51,0.00013229,2]
[353656288,1739983845926,-500.0,0.00013229,2]
[353656289,1739983845936,-500.0,0.00013229,2]
[353656290,1739983845946,-1041.48,0.00013229,2]
[353656291,1739983846169,-500.0,0.00013229,2]
[353656292,1739983846179,-500.0,0.00013229,2]
[353656293,1739983846190,-730.23,0.00013229,2]
[353656294,1739983846200,-500.0,0.00013229,2]
[353656295,1739983846210,-1608.69,0.00013229,2]
[353656296,1739983846219,-1401.62,0.00013229,2]
[353656297,1739983846229,-1181.78,0.00013229,2]
[353656298,1739983846239,-1369.58,0.00013229,2]
[353656299,1739983846249,-500.0,0.00013229,2]
[353656300,1739983846259,-500.0,0.00013229,2]
[353656301,1739983846268,-1451.33,0.00013229,2]
[353656302,1739983846278,-805.89,0.00013229,2]
[353656303,1739983846287,-2929.86,0.00013229,2]
[353656304,1739983846297,-500.0,0.00013229,2]
[353656305,1739983846307,-500.0,0.00013229,2]
[353656306,1739983846316,-1429.24,0.00013229,2]
[353656307,1739983846325,-1020.94,0.00013229,2]
[353656308,1739983846335,-500.0,0.00013229,2]
[353656309,1739983846344,-500.0,0.00013229,2]
[353656310,1739983846354,-2346.71,0.00013229,2]
[353656311,1739983846366,-500.0,0.00013229,2]
[353656312,1739983846376,-500.0,0.00013229,2]
[353656313,1739983846386,-2630.41,0.00013229,2]
[353656314,1739983846396,-1873.49,0.00013229,2]
[353656315,1739983846405,-500.0,0.00013229,2]
[353656316,1739983846415,-1587.71,0.00013229,2]
[353656317,1739983846425,-4514.81,0.00013229,2]
[353656318,1739983846435,-1082.19,0.00013229,2]
[353656319,1739983846445,-754.6,0.00013229,2]
[353656320,1739983846455,-340.53906757,0.00013229,2]
[353656321,1739983846465,-847.19,0.00013229,2]
[353656322,1739983846475,-500.0,0.00013229,2]
[353656323,1739983846485,-1027.53,0.00013229,2]
[353656324,1739983846495,-757.43,0.00013229,2]
[353656325,1739983846504,-500.0,0.00013229,2]
[353656326,1739983846516,-1502.28,0.00013229,2]
[353656327,1739983846526,-1743.11,0.00013229,2]
[353656328,1739983846536,-1156.78,0.00013229,2]
[353656329,1739983846545,-2439.25,0.00013229,2]
[353656330,1739983846555,-500.0,0.00013229,2]
[353656331,1739983846564,-2217.02,0.00013229,2]
[353656332,1739983846574,-500.0,0.00013229,2]
[353656333,1739983846583,-763.09,0.00013229,2]
[353656334,1739983846593,-4026.9,0.00013229,2]
[353656335,1739983846603,-4232.27,0.00013229,2]
[353656336,1739983846612,-500.0,0.00013229,2]
[353656337,1739983846621,-500.0,0.00013229,2]
[353656338,1739983846631,-2133.94,0.00013229,2]
[353656339,1739983846641,-500.0,0.00013229,2]
[353656340,1739983846650,-996.99,0.00013229,2]
[353656341,1739983846660,-637.25,0.00013229,2]
[353656342,1739983846670,-500.0,0.00013229,2]
[353656343,1739983846680,-1715.81,0.00013229,2]
[353656344,1739983846690,-500.0,0.00013229,2]
[353656345,1739983846699,-500.0,0.00013229,2]
[353656346,1739983846709,-500.0,0.00013229,2]
[353656347,1739983846719,-4000.12,0.00013229,2]
[353656348,1739983846729,-1159.46,0.00013229,2]
[353656349,1739983846739,-2232.27,0.00013229,2]
[353656350,1739983846748,-1464.47,0.00013229,2]
[353656351,1739983846759,-3006.69,0.00013229,2]
[353656352,1739983846769,-2224.1,0.00013229,2]
[353656353,1739983846778,-649.81,0.00013229,2]
[353656354,1739983846787,-376.31948713,0.00013229,2]
[353656355,1739983846796,-2249.29,0.00013229,2]
[353656356,1739983846806,-500.0,0.00013229,2]
[353656357,1739983846815,-500.0,0.00013229,2]
[353656358,1739983846824,-500.0,0.00013229,2]
[353656359,1739983846834,-2877.1,0.00013229,2]
[353656360,1739983846843,-500.0,0.00013229,2]
[353656361,1739983846852,-500.0,0.00013229,2]
[353656362,1739983846862,-560.82833576,0.00013229,2]
[353656363,1739983846949,-323.39166424,0.00013229,2]
[353656364,1739983846960,-3996.87,0.00013229,2]
[353656365,1739983846970,-437.44720611,0.00013229,2]
[353656366,1739983846982,-62.55279389,0.00013229,2]
[353656367,1739983846993,-948.51147815,0.00013229,2]
[353656368,1739983847034,-54.03852185,0.00013229,2]
[353656369,1739983847044,-353.14867339,0.00013229,2]
[353656370,1739983847864,-383.06268,0.00013147,2]
[353656371,1739983847875,-301.72732,0.00013147,2]
[353656372,1739983847885,-500.0,0.00013147,2]
[353656373,1739983847895,-448.35132661,0.00013229,2]
[353656374,1739983847905,-2804.54,0.00013229,2]
[353656375,1739983847916,-1862.62,0.00013229,2]
[353656376,1739983847925,-500.0,0.00013229,2]
[353656377,1739983847935,-3031.5,0.00013229,2]
[353656378,1739983847945,-958.26,0.00013229,2]
[353656379,1739983847955,-3009.47,0.00013229,2]
[353656380,1739983847964,-500.0,0.00013229,2]
[353656381,1739983847974,-3118.77,0.00013229,2]
[353656382,1739983847983,-1343.84,0.00013229,2]
[353656383,1739983847993,-8660.06,0.00013229,2]
[353656384,1739983848003,-3128.6,0.00013229,2]
[353656385,1739983848013,-500.0,0.00013229,2]
[353656386,1739983848023,-3657.37,0.00013229,2]
[353656387,1739983848036,-500.0,0.00013229,2]
[353656388,1739983848046,-2459.84,0.00013229,2]
[353656389,1739983848056,-1351.54,0.00013229,2]
[353656390,1739983848066,-209.07860576,0.00013229,2]
[353656391,1739983848077,-2366.81,0.00013229,2]
[353656392,1739983848087,-1908.65,0.00013229,2]
[353656393,1739983848097,-500.0,0.00013229,2]
[353656394,1739983848108,-3231.04,0.00013229,2]
[353656395,1739983848118,-1317.88,0.00013229,2]
[353656396,1739983848128,-2664.93,0.00013229,2]
[353656397,1739983848137,-963.83,0.00013229,2]
[353656398,1739983848147,-500.0,0.00013229,2]
[353656399,1739983848157,-2579.82,0.00013229,2]
[353656400,1739983848167,-500.0,0.00013229,2]
[353656401,1739983848177,-2595.04,0.00013229,2]
[353656402,1739983848187,-500.0,0.00013229,2]
[353656403,1739983848197,-1681.75,0.00013229,2]
[353656404,1739983848206,-632.12,0.00013229,2]
[353656405,1739983848216,-2505.06,0.00013229,2]
[353656406,1739983848225,-500.0,0.00013229,2]
[353656407,1739983848236,-1360.89,0.00013229,2]
[353656408,1739983848245,-500.0,0.00013229,2]
[353656409,1739983848255,-840.52,0.00013229,2]
[353656410,1739983848266,-1523.84,0.00013229,2]
[353656411,1739983848276,-500.0,0.00013229,2]
[353656412,1739983848286,-6240.14,0.00013229,2]
[353656413,1739983848295,-1169.94,0.00013229,2]
[353656414,1739983848305,-1878.53,0.00013229,2]
[353656415,1739983848315,-500.0,0.00013229,2]
[353656416,1739983848324,-500.0,0.00013229,2]
[353656417,1739983848334,-1083.46,0.00013229,2]
[353656418,1739983848343,-500.0,0.00013229,2]
[353656419,1739983848353,-2400.8,0.00013229,2]
[353656420,1739983848362,-500.0,0.00013229,2]
[353656421,1739983848372,-601.07,0.00013229,2]
[353656422,1739983848382,-500.0,0.00013229,2]
[353656423,1739983848391,-2791.46,0.00013229,2]
[353656424,1739983848470,-2985.22,0.00013229,2]
[353656425,1739983848480,-500.0,0.00013229,2]
[353656426,1739983848489,-500.0,0.00013229,2]
[353656427,1739983848499,-1103.37,0.00013229,2]
[353656428,1739983848509,-500.0,0.00013229,2]
[353656429,1739983848519,-500.0,0.00013229,2]
[353656430,1739983848528,-500.0,0.00013229,2]
[353656431,1739983848538,-312.07047952,0.00013229,2]
[353656432,1739983848550,-2360.00952048,0.00013229,2]
[353656433,1739983848560,-500.0,0.00013229,2]
[353656434,1739983848571,-3612.7,0.00013229,2]
[353656435,1739983848580,-1626.85,0.00013229,2]
[353656436,1739983848589,-1240.85,0.00013229,2]
[353656437,1739983848599,-500.0,0.00013229,2]
[353656438,1739983848608,-500.0,0.00013229,2]
[353656439,1739983848618,-2785.79,0.00013229,2]
[353656440,1739983848628,-500.0,0.00013229,2]
[353656441,1739983848638,-727.89,0.00013229,2]
[353656442,1739983848647,-1359.38,0.00013229,2]
[353656443,1739983848657,-1160.63,0.00013229,2]
[353656444,1739983848667,-4094.01,0.00013229,2]
[353656445,1739983848676,-664.76,0.00013229,2]
[353656446,1739983848686,-500.0,0.00013229,2]
[353656447,1739983848695,-500.0,0.00013229,2]
[353656448,1739983848705,-500.0,0.00013229,2]
[353656449,1739983848714,-606.76,0.00013229,2]
[353656450,1739983848724,-1219.41,0.00013229,2]
[353656451,1739983848734,-2636.24,0.00013229,2]
[353656452,1739983848743,-337.15969562,0.00013229,2]
[353656453,1739983848753,-500.0,0.00013229,2]
[353656454,1739983848763,-500.0,0.00013229,2]
[353656455,1739983848773,-1667.4,0.00013229,2]
[353656456,1739983848783,-3024.75,0.00013229,2]
[353656457,1739983848793,-500.0,0.00013229,2]
[353656458,1739983848802,-500.0,0.00013229,2]
[353656459,1739983848812,-2469.7,0.00013229,2]
[353656460,1739983848821,-1238.11,0.00013229,2]
[353656461,1739983848831,-4053.58,0.00013229,2]
[353656462,1739983848841,-919.89,0.00013229,2]
[353656463,1739983848853,-2239.11,0.00013229,2]
[353656464,1739983848862,-500.0,0.00013229,2]
[353656465,1739983848872,-500.0,0.00013229,2]
[353656466,1739983848882,-500.0,0.00013229,2]
[353656467,1739983848892,-539.53318952,0.00013229,2]
[353656468,1739983848901,-1354.74,0.00013229,2]
[353656469,1739983848911,-500.0,0.00013229,2]
[353656470,1739983848921,-2699.3,0.00013229,2]
[353656471,1739983848931,-2573.23,0.00013229,2]
[353656472,1739983848940,-638.33,0.00013229,2]
[353656473,1739983848950,-500.0,0.00013229,2]
[353656474,1739983848959,-500.0,0.00013229,2]
[353656475,1739983848968,-500.0,0.00013229,2]
[353656476,1739983848978,-934.37,0.00013229,2]
[353656477,1739983848987,-500.0,0.00013229,2]
[353656478,1739983848997,-500.0,0.00013229,2]
[353656479,1739983849007,-1706.88,0.00013229,2]
[353656480,1739983849016,-500.0,0.00013229,2]
[353656481,1739983849026,-758.59,0.00013229,2]
[353656482,1739983849039,-2696.1,0.00013229,2]
[353656483,1739983849049,-500.0,0.00013229,2]
[353656484,1739983849058,-500.0,0.00013229,2]
[353656485,1739983849069,-1537.62,0.00013229,2]
[353656486,1739983849078,-1207.6,0.00013229,2]
[353656487,1739983849088,-500.0,0.00013229,2]
[353656488,1739983849098,-500.0,0.00013229,2]
[353656489,1739983849108,-2514.47,0.00013229,2]
[353656490,1739983849120,-1408.96,0.00013229,2]
[353656491,1739983849130,-500.0,0.00013229,2]
[353656492,1739983849140,-2616.88,0.00013229,2]
[353656493,1739983849149,-3878.76,0.00013229,2]
[353656494,1739983849159,-3342.34,0.00013229,2]
[353656495,1739983849169,-505.42791807,0.00013229,2]
[353656496,1739983849179,-500.0,0.00013229,2]
[353656497,1739983849189,-571.0,0.00013229,2]
[353656498,1739983849200,-1404.38,0.00013229,2]
[353656499,1739983849210,-1306.13,0.00013229,2]
[353656500,1739983849219,-503.68244561,0.00013229,2]
[353656501,1739983849230,-684.79,0.00013229,2]
[353656502,1739983849240,-758.15,0.0001323,2]
[353656503,1739983849252,-500.0,0.0001323,2]
[353656504,1739983849264,-500.0,0.0001323,2]
[353656505,1739983849274,-300.38294297,0.0001323,2]
[353656506,1739983849284,-500.0,0.0001323,2]
[353656507,1739983849294,-838.18,0.0001323,2]
[353656508,1739983849304,-500.0,0.0001323,2]
[353656509,1739983849314,-786.75,0.0001323,2]
[353656510,1739983849324,-500.0,0.0001323,2]
[353656511,1739983849333,-500.0,0.0001323,2]
[353656512,1739983849342,-595.45,0.0001323,2]
[353656513,1739983849352,-500.0,0.0001323,2]
[353656514,1739983849362,-500.0,0.0001323,2]
[353656515,1739983849371,-643.12,0.0001323,2]
[353656516,1739983849381,-1001.33,0.0001323,2]
[353656517,1739983849391,-500.0,0.0001323,2]
[353656518,1739983849400,-500.0,0.0001323,2]
[353656519,1739983849411,-1288.62,0.0001323,2]
[353656520,1739983849420,-2442.95,0.0001323,2]
[353656521,1739983849430,-2090.1,0.0001323,2]
[353656522,1739983849440,-3048.22,0.0001323,2]
[353656523,1739983849449,-1633.62976405,0.0001323,2]
[353656524,1739983849468,-403.39023595,0.0001323,2]
[353656525,1739983849478,-540.1712595,0.0001323,2]
[353656526,1739983850259,-500.0,0.00013146,2]
[353656527,1739983850270,-2319.8787405,0.0001323,2]
[353656528,1739983850280,-3603.34,0.0001323,2]
[353656529,1739983850290,-1730.99,0.0001323,2]
[353656530,1739983850300,-2053.64,0.0001323,2]
[353656531,1739983850310,-1818.91,0.0001323,2]
[353656532,1739983850320,-3087.52,0.0001323,2]
[353656533,1739983850330,-940.02,0.0001323,2]
[353656534,1739983850339,-1906.84,0.0001323,2]
[353656535,1739983850349,-2424.11,0.0001323,2]
[353656536,1739983850358,-3241.19,0.0001323,2]
[353656537,1739983850367,-2109.25,0.0001323,2]
[353656538,1739983850376,-2718.75,0.0001323,2]
[353656539,1739983850385,-683.07,0.0001323,2]
[353656540,1739983850394,-1733.78,0.0001323,2]
[353656541,1739983850404,-3014.28,0.0001323,2]
[353656542,1739983850414,-156.43352753,0.00013231,2]
[353656543,1739983850423,-500.0,0.00013232,2]
[353656544,1739983850433,-500.0,0.00013232,2]
[353656545,1739983850442,-923.91,0.00013232,2]
[353656546,1739983850451,-500.0,0.00013232,2]
[353656547,1739983850461,-976.01,0.00013232,2]
[353656548,1739983850471,-500.0,0.00013232,2]
[353656549,1739983850480,-536.05,0.00013232,2]
[353656550,1739983850489,-500.0,0.00013232,2]
[353656551,1739983850498,-714.18,0.00013232,2]
[353656552,1739983850508,-500.0,0.00013232,2]
[353656553,1739983850519,-687.08,0.00013232,2]
[353656554,1739983850528,-500.0,0.00013232,2]
[353656555,1739983850538,-500.0,0.00013232,2]
[353656556,1739983850548,-597.97,0.00013232,2]
[353656557,1739983850557,-687.03,0.00013232,2]
[353656558,1739983850567,-500.0,0.00013232,2]
[353656559,1739983850576,-504.42717946,0.00013232,2]
[353656560,1739983850585,-500.0,0.00013232,2]
[353656561,1739983850595,-500.0,0.00013232,2]
[353656562,1739983850604,-500.0,0.00013232,2]
[353656563,1739983850613,-500.79,0.00013232,2]
[353656564,1739983850622,-500.0,0.00013232,2]
[353656565,1739983850632,-1124.1,0.00013232,2]
[353656566,1739983850642,-698.43,0.00013232,2]
[353656567,1739983850651,-946.51,0.00013232,2]
[353656568,1739983850660,-500.0,0.00013232,2]
[353656569,1739983850669,-381.81017561,0.00013232,2]
[353656570,1739983850678,-500.0,0.00013232,2]
[353656571,1739983850687,-832.47,0.00013232,2]
[353656572,1739983850697,-500.0,0.00013232,2]
[353656573,1739983850706,-500.0,0.00013232,2]
[353656574,1739983850715,-500.0,0.00013232,2]
[353656575,1739983850724,-500.0,0.00013232,2]
[353656576,1739983850733,-500.0,0.00013232,2]
[353656577,1739983850742,-500.0,0.00013232,2]
[353656578,1739983850751,-841.13,0.00013232,2]
[353656579,1739983850760,-500.0,0.00013232,2]
[353656580,1739983850772,-1129.04,0.00013232,2]
[353656581,1739983850781,-722.74,0.00013232,2]
[353656582,1739983850791,-500.0,0.00013232,2]
[353656583,1739983850800,-500.0,0.00013232,2]
[353656584,1739983850810,-500.0,0.00013232,2]
[353656585,1739983850819,-658.77,0.00013232,2]
[353656586,1739983850829,-500.0,0.00013232,2]
[353656587,1739983850838,-603.43,0.00013232,2]
[353656588,1739983850848,-1047.31,0.00013232,2]
[353656589,1739983850857,-416.57332612,0.00013232,2]
[353656590,1739983850867,-500.0,0.00013232,2]
[353656591,1739983850876,-574.17500961,0.00013232,2]
[353656592,1739983850885,-500.0,0.00013232,2]
[353656593,1739983850894,-500.0,0.00013232,2]
[353656594,1739983850904,-500.0,0.00013232,2]
[353656595,1739983850913,-500.0,0.00013232,2]
[353656596,1739983850922,-500.0,0.00013232,2]
[353656597,1739983850931,-1235.13,0.00013232,2]
[353656598,1739983850940,-1360.14,0.00013232,2]
[353656599,1739983850950,-1045.3,0.00013232,2]
[353656600,1739983850960,-947.08,0.00013232,2]
[353656601,1739983850969,-1261.45,0.00013232,2]
[353656602,1739983850979,-500.0,0.00013232,2]
[353656603,1739983850988,-608.87,0.00013232,2]
[353656604,1739983850997,-1213.36,0.00013232,2]
[353656605,1739983851008,-500.0,0.00013232,2]
[353656606,1739983851018,-500.0,0.00013232,2]
[353656607,1739983851028,-500.0,0.00013232,2]
[353656608,1739983851041,-606.15,0.00013232,2]
[353656609,1739983851050,-500.0,0.00013232,2]
[353656610,1739983851060,-507.55,0.00013232,2]
[353656611,1739983851070,-500.0,0.00013232,2]
[353656612,1739983851081,-728.32,0.00013232,2]
[353656613,1739983851091,-997.23,0.00013232,2]
[353656614,1739983851100,-871.39,0.00013232,2]
[353656615,1739983851110,-1003.09,0.00013232,2]
[353656616,1739983851120,-500.0,0.00013232,2]
[353656617,1739983851130,-926.49,0.00013232,2]
[353656618,1739983851139,-500.0,0.00013232,2]
[353656619,1739983851148,-500.0,0.00013232,2]
[353656620,1739983851157,-500.0,0.00013232,2]